Organisation Name,Organisation Code,Directorate/Service,Service Category Label,Service Code,Supplier Name,Supplier Reference,Payment Date,Transaction Number,Net Payments,Purpose of Spend
North West Leicestershire District Council,31UH,Housing Repairs,HRA Housing Repairs & Maintenance,HRAHRM,John Merison BMC Ltd,A001092,06/04/2022,1422405,2265.83,Contract Payments (Dws) Ext
North West Leicestershire District Council,31UH,Housing Repairs,HRA Housing Repairs & Maintenance,HRAHRM,Geze Uk Limited,A023130,06/04/2022,1422406,390.08,Lift maintenance
North West Leicestershire District Council,31UH,Housing Repairs,HRA Housing Repairs & Maintenance,HRAHRM,Laker BMS Ltd,A031787,06/04/2022,1422407,3025.00,Housing Repairs
North West Leicestershire District Council,31UH,Housing Repairs,HRA Housing Repairs & Maintenance,HRAHRM,Emperor Scaffolding Limited,A038405,06/04/2022,1422409,300.00,Hire Of Operational Equipment
North West Leicestershire District Council,31UH,Housing Repairs,HRA Housing Repairs & Maintenance,HRAHRM,Emperor Scaffolding Limited,A038405,06/04/2022,1422410,450.00,Hire Of Operational Equipment
North West Leicestershire District Council,31UH,Housing Repairs,HRA Housing Repairs & Maintenance,HRAHRM,Emperor Scaffolding Limited,A038405,06/04/2022,1422412,660.00,Hire Of Operational Equipment
North West Leicestershire District Council,31UH,Housing Repairs,HRA Housing Repairs & Maintenance,HRAHRM,John Merison BMC Ltd,A001092,06/04/2022,1422413,2464.87,Contract Payments (Dws) Ext
North West Leicestershire District Council,31UH,Housing Repairs,HRA Housing Repairs & Maintenance,HRAHRM,Emperor Scaffolding Limited,A038405,06/04/2022,1422416,475.00,Hire Of Operational Equipment
North West Leicestershire District Council,31UH,Housing Repairs,HRA Housing Repairs & Maintenance,HRAHRM,Emperor Scaffolding Limited,A038405,06/04/2022,1422417,400.00,Hire Of Operational Equipment
North West Leicestershire District Council,31UH,Housing Repairs,HRA Housing Repairs & Maintenance,HRAHRM,Severn Trent Water Limited,A001468,06/04/2022,1422421,1013.29,Sewerage & Environmental
North West Leicestershire District Council,31UH,Housing Repairs,HRA Housing Repairs & Maintenance,HRAHRM,Emperor Scaffolding Limited,A038405,06/04/2022,1422423,375.00,Hire Of Operational Equipment
North West Leicestershire District Council,31UH,Housing Repairs,HRA Housing Repairs & Maintenance,HRAHRM,Emperor Scaffolding Limited,A038405,06/04/2022,1422424,495.00,Hire Of Operational Equipment
North West Leicestershire District Council,31UH,Housing Repairs,HRA Housing Repairs & Maintenance,HRAHRM,Emperor Scaffolding Limited,A038405,06/04/2022,1422425,375.00,Hire Of Operational Equipment
North West Leicestershire District Council,31UH,Housing Repairs,HRA Housing Repairs & Maintenance,HRAHRM,Emperor Scaffolding Limited,A038405,06/04/2022,1422426,300.00,Hire Of Operational Equipment
North West Leicestershire District Council,31UH,Housing Repairs,HRA Housing Repairs & Maintenance,HRAHRM,John Merison BMC Ltd,A001092,06/04/2022,1422428,3673.08,Contract Payments (Dws) Ext
North West Leicestershire District Council,31UH,Housing Repairs,HRA Housing Repairs & Maintenance,HRAHRM,Emperor Scaffolding Limited,A038405,06/04/2022,1422431,320.00,Hire Of Operational Equipment
North West Leicestershire District Council,31UH,Housing Repairs,HRA Housing Repairs & Maintenance,HRAHRM,Emperor Scaffolding Limited,A038405,06/04/2022,1422432,400.00,Hire Of Operational Equipment
North West Leicestershire District Council,31UH,Housing Repairs,HRA Housing Repairs & Maintenance,HRAHRM,Laker BMS Ltd,A031787,12/04/2022,1422779,644.40,Housing Repairs
North West Leicestershire District Council,31UH,Housing Repairs,HRA Housing Repairs & Maintenance,HRAHRM,John Merison BMC Ltd,A001092,12/04/2022,1422784,2552.25,Contract Payments (Dws) Ext
North West Leicestershire District Council,31UH,Housing Repairs,HRA Housing Repairs & Maintenance,HRAHRM,Laker BMS Ltd,A031787,12/04/2022,1422785,4632.42,Housing Repairs
North West Leicestershire District Council,31UH,Housing Repairs,HRA Housing Repairs & Maintenance,HRAHRM,Laker BMS Ltd,A031787,12/04/2022,1422786,5450.64,Housing Repairs
North West Leicestershire District Council,31UH,Housing Repairs,HRA Housing Repairs & Maintenance,HRAHRM,Premier Mobility UK Ltd,A045304,12/04/2022,1422787,2092.63,Contract Payments (Dws) Ext
North West Leicestershire District Council,31UH,Housing Repairs,HRA Housing Repairs & Maintenance,HRAHRM,Premier Mobility UK Ltd,A045304,12/04/2022,1422788,319.73,Contract Payments (Dws) Ext
North West Leicestershire District Council,31UH,Housing Repairs,HRA Housing Repairs & Maintenance,HRAHRM,Laker BMS Ltd,A031787,12/04/2022,1422793,4925.00,Housing Repairs
North West Leicestershire District Council,31UH,Housing Repairs,HRA Housing Repairs & Maintenance,HRAHRM,Laker BMS Ltd,A031787,12/04/2022,1422794,8014.50,Housing Repairs
North West Leicestershire District Council,31UH,Housing Repairs,HRA Housing Repairs & Maintenance,HRAHRM,Laker BMS Ltd,A031787,12/04/2022,1422795,320.00,Housing Repairs
North West Leicestershire District Council,31UH,Housing Repairs,HRA Housing Repairs & Maintenance,HRAHRM,Premier Mobility UK Ltd,A045304,12/04/2022,1422799,806.09,Contract Payments (Dws) Ext
North West Leicestershire District Council,31UH,Housing Repairs,HRA Housing Repairs & Maintenance,HRAHRM,Premier Mobility UK Ltd,A045304,12/04/2022,1422800,385.71,Contract Payments (Dws) Ext
North West Leicestershire District Council,31UH,Housing Repairs,HRA Housing Repairs & Maintenance,HRAHRM,John Merison BMC Ltd,A001092,12/04/2022,1422801,3974.44,Contract Payments (Dws) Ext
North West Leicestershire District Council,31UH,Housing Repairs,HRA Housing Repairs & Maintenance,HRAHRM,Laker BMS Ltd,A031787,12/04/2022,1422802,6093.84,Housing Repairs
North West Leicestershire District Council,31UH,Housing Repairs,HRA Housing Repairs & Maintenance,HRAHRM,Laker BMS Ltd,A031787,12/04/2022,1422803,5169.29,Housing Repairs
North West Leicestershire District Council,31UH,Housing Repairs,HRA Housing Repairs & Maintenance,HRAHRM,Laker BMS Ltd,A031787,12/04/2022,1422804,303.60,Housing Repairs
North West Leicestershire District Council,31UH,Housing Repairs,HRA Housing Repairs & Maintenance,HRAHRM,Laker BMS Ltd,A031787,12/04/2022,1422811,7543.00,Housing Repairs
North West Leicestershire District Council,31UH,Housing Repairs,HRA Housing Repairs & Maintenance,HRAHRM,Laker BMS Ltd,A031787,12/04/2022,1422812,5199.34,Housing Repairs
North West Leicestershire District Council,31UH,Housing Repairs,HRA Housing Repairs & Maintenance,HRAHRM,Emperor Scaffolding Limited,A038405,27/04/2022,1423495,375.00,Hire Of Operational Equipment
North West Leicestershire District Council,31UH,Housing Repairs,HRA Housing Repairs & Maintenance,HRAHRM,John Merison BMC Ltd,A001092,27/04/2022,1423496,2387.72,Contract Payments (Dws) Ext
North West Leicestershire District Council,31UH,Housing Repairs,HRA Housing Repairs & Maintenance,HRAHRM,Orbis Property Protection Ltd,A028149,27/04/2022,1423499,795.00,Contract Cleaning
North West Leicestershire District Council,31UH,Housing Repairs,HRA Housing Repairs & Maintenance,HRAHRM,Emperor Scaffolding Limited,A038405,27/04/2022,1423501,375.00,Hire Of Operational Equipment
North West Leicestershire District Council,31UH,Housing Repairs,HRA Housing Repairs & Maintenance,HRAHRM,Emperor Scaffolding Limited,A038405,27/04/2022,1423505,375.00,Hire Of Operational Equipment
North West Leicestershire District Council,31UH,Housing Repairs,HRA Housing Repairs & Maintenance,HRAHRM,Emperor Scaffolding Limited,A038405,27/04/2022,1423516,660.00,Hire Of Operational Equipment
North West Leicestershire District Council,31UH,Housing Repairs,HRA Housing Repairs & Maintenance,HRAHRM,Orbis Property Protection Ltd,A028149,27/04/2022,1423520,1285.66,Contract Cleaning
North West Leicestershire District Council,31UH,Housing Repairs,HRA Housing Repairs & Maintenance,HRAHRM,Orbis Property Protection Ltd,A028149,27/04/2022,1423521,879.42,Contract Cleaning
North West Leicestershire District Council,31UH,Housing Repairs,HRA Housing Repairs & Maintenance,HRAHRM,Emperor Scaffolding Limited,A038405,27/04/2022,1423527,750.00,Hire Of Operational Equipment
North West Leicestershire District Council,31UH,Housing Repairs,HRA Housing Repairs & Maintenance,HRAHRM,John Merison BMC Ltd,A001092,27/04/2022,1423528,3329.87,Contract Payments (Dws) Ext
North West Leicestershire District Council,31UH,Housing Repairs,HRA Housing Repairs & Maintenance,HRAHRM,Orbis Property Protection Ltd,A028149,27/04/2022,1423531,381.57,Contract Cleaning
North West Leicestershire District Council,31UH,Housing Repairs,HRA Housing Repairs & Maintenance,HRAHRM,Emperor Scaffolding Limited,A038405,27/04/2022,1423533,750.00,Hire Of Operational Equipment
North West Leicestershire District Council,31UH,Finance,Financial Planning,FINPLA,Leicestershire County Council,A000950,27/04/2022,1423239,5260161.00,Precept
North West Leicestershire District Council,31UH,Finance,Financial Planning,FINPLA,"Leicester, Leicestershire & Rutland Combined Fire Authority",A028339,27/04/2022,1423240,268708.00,Precept
North West Leicestershire District Council,31UH,Finance,Financial Planning,FINPLA,The Office of the Police and Crime Commissioner for Leicestershire,A007096,27/04/2022,1423241,934812.29,Precept
North West Leicestershire District Council,31UH,Finance,Financial Planning,FINPLA,Platform Housing,A000133,21/04/2022,1423139,149500.00,Affordable Housing
North West Leicestershire District Council,31UH,Finance,Financial Planning,FINPLA,Castle Donington Parish Council,A000133,21/04/2022,1423140,96881.26,S106-Affordable Housing
North West Leicestershire District Council,31UH,Finance,Financial Planning,FINPLA,Department for Communities & Local Government,A028518,21/04/2022,1423141,7059129.00,Subsidy Receipts & Repayments
North West Leicestershire District Council,31UH,Finance,Financial Planning,FINPLA,HMRC,A000133,21/04/2022,1423142,2940.00,Stamp Duty
North West Leicestershire District Council,31UH,Finance,Exchequer Services,EXCH,Vodafone Limited,A001861,21/04/2022,1423143,593.47,Mobile Telephones
North West Leicestershire District Council,31UH,Housing Repairs,HRA Housing Repairs & Maintenance,HRAHRM,Dodd Group (Midlands) Limited,A036692,21/04/2022,1423146,13894.63,Electrical Inspections
North West Leicestershire District Council,31UH,Housing,HRA Housing Management,HRAHM,H M C S,A033868,21/04/2022,1423147,1195.00,Legal & Professional Services
North West Leicestershire District Council,31UH,Housing,HRA Performance & Business Support,HRAPBS,Redacted-Personal Data,A000133,21/04/2022,1423148,2500.00,Compensation
North West Leicestershire District Council,31UH,Finance,Exchequer Services,EXCH,Total Gas & Power,A033385,21/04/2022,1423150,15589.25,Electricity
North West Leicestershire District Council,31UH,Neighbourhoods & Communities,N & C Neighbourhoods,NACN,Belvoirdale Primary School,A047414,20/04/2022,1423133,250.00,Small Grant Scheme
North West Leicestershire District Council,31UH,Housing,HRA Housing Management,HRAHM,JLA Limited,A043639,20/04/2022,1423134,442.00,Cleaning & Domestic Equipment
North West Leicestershire District Council,31UH,Housing Repairs,HRA Housing Repairs & Maintenance,HRAHRM,Rybka,A046735,20/04/2022,1423135,2520.00,General Repairs
North West Leicestershire District Council,31UH,Planning & Development,Environment - Development Control,EDC,Land Use Consultants Ltd,A044090,20/04/2022,1423137,4676.00,Consultants Fees
North West Leicestershire District Council,31UH,Housing,HRA Housing Management,HRAHM,Aareon UK Ltd,A045197,06/04/2022,1422601,2610.00,Contract Payments (Other) Ext
North West Leicestershire District Council,31UH,Housing,HRA Housing Management,HRAHM,Aareon UK Ltd,A045197,06/04/2022,1422602,870.00,Contract Payments (Other) Ext
North West Leicestershire District Council,31UH,Housing,HRA Housing Management,HRAHM,Aareon UK Ltd,A045197,06/04/2022,1422604,4275.00,Contract Payments (Other) Ext
North West Leicestershire District Council,31UH,Housing,HRA Housing Management,HRAHM,Aareon UK Ltd,A045197,06/04/2022,1422605,435.00,Contract Payments (Other) Ext
North West Leicestershire District Council,31UH,Housing,HRA Housing Management,HRAHM,Aareon UK Ltd,A045197,06/04/2022,1422606,978.50,Contract Payments (Other) Ext
North West Leicestershire District Council,31UH,Housing,HRA Housing Management,HRAHM,Aareon UK Ltd,A045197,06/04/2022,1422608,2610.00,Contract Payments (Other) Ext
North West Leicestershire District Council,31UH,Housing,HRA Housing Management,HRAHM,Aareon UK Ltd,A045197,06/04/2022,1422609,1740.00,Contract Payments (Other) Ext
North West Leicestershire District Council,31UH,Housing Repairs,HRA Housing Repairs & Maintenance,HRAHRM,Everwarm Limited,A044582,27/04/2022,1423541,19555.67,Contract Payments (Dws) Ext
North West Leicestershire District Council,31UH,Housing Repairs,HRA Housing Repairs & Maintenance,HRAHRM,European Asbestos Services Ltd,A045507,27/04/2022,1423542,38994.87,Asbestos Surveys and Remediation
North West Leicestershire District Council,31UH,Housing Repairs,HRA Housing Repairs & Maintenance,HRAHRM,Dodd Group (Midlands) Limited,A036692,27/04/2022,1423543,9740.06,Electrical Inspections
North West Leicestershire District Council,31UH,Housing,HRA Housing Management,HRAHM,Redacted-Personal Data,A042569,27/04/2022,1423545,250.00,Mutual Exchange Costs
North West Leicestershire District Council,31UH,Legal & Democratic,Legal Services,LDLS,Act Now Training Ltd,A030708,27/04/2022,1423546,399.00,Training Expenses
North West Leicestershire District Council,31UH,Legal & Democratic,Legal Services,LDLS,Act Now Training Ltd,A030708,27/04/2022,1423548,399.00,Training Expenses
North West Leicestershire District Council,31UH,Neighbourhoods & Communities,N & C Neighbourhoods,NACN,Hall Lane Methodist Church,A009152,27/04/2022,1423549,250.00,Small Grant Scheme
North West Leicestershire District Council,31UH,Housing Repairs,HRA Housing Repairs & Maintenance,HRAHRM,European Asbestos Services Ltd,A045507,27/04/2022,1423550,27776.04,Asbestos Surveys and Remediation
North West Leicestershire District Council,31UH,Housing,HRA Housing Management,HRAHM,Shelter Training & Publications,A036464,27/04/2022,1423337,390.00,Legal & Professional Services
North West Leicestershire District Council,31UH,Housing,HRA Housing Management,HRAHM,JLA Limited,A043639,27/04/2022,1423338,282.00,Cleaning & Domestic Equipment
North West Leicestershire District Council,31UH,Property Services,Property Commercial Lettings,PROPCL,British Gas Business,A035181,27/04/2022,1423342,293.57,Electricity
North West Leicestershire District Council,31UH,Finance,Exchequer Services,EXCH,Comensura Limited,A036958,27/04/2022,1423347,23731.23,Agency Staff
North West Leicestershire District Council,31UH,Finance,Exchequer Services,EXCH,Click Travel Ltd,A044308,27/04/2022,1423348,7927.61,Accomodation and Travel
North West Leicestershire District Council,31UH,Economic Development,Business Focus Group,BFG,Ashby BID Company Ltd,A047386,27/04/2022,1423386,74200.00,Ashby Bid-Advance payment
North West Leicestershire District Council,31UH,Housing Repairs,HRA Housing Repairs & Maintenance,HRAHRM,Dalrod UK Ltd,A046051,27/04/2022,1423388,752.90,Sewerage & Environmental
North West Leicestershire District Council,31UH,Housing Repairs,HRA Housing Repairs & Maintenance,HRAHRM,Dalrod UK Ltd,A046051,27/04/2022,1423389,483.41,Sewerage & Environmental
North West Leicestershire District Council,31UH,Neighbourhoods & Communities,N & C Neighbourhoods,NACN,1st Worthington Guides,A047421,27/04/2022,1423390,250.00,Small Grant Scheme
North West Leicestershire District Council,31UH,Neighbourhoods & Communities,N & C Neighbourhoods,NACN,Ravenstone Events Group,A047420,27/04/2022,1423391,250.00,Small Grant Scheme
North West Leicestershire District Council,31UH,Finance,Financial Planning,FINPLA,Worthington Parish Council,A001813,27/04/2022,1423305,11500.00,Precept
North West Leicestershire District Council,31UH,Finance,Financial Planning,FINPLA,Whitwick Parish Council,A038617,27/04/2022,1423306,137330.00,Precept
North West Leicestershire District Council,31UH,Finance,Financial Planning,FINPLA,Swepstone Parish Council,A001613,27/04/2022,1423307,9084.00,Precept
North West Leicestershire District Council,31UH,Finance,Financial Planning,FINPLA,Swannington Parish Council,A001608,27/04/2022,1423308,17549.50,Precept
North West Leicestershire District Council,31UH,Finance,Financial Planning,FINPLA,Snarestone Parish Council,A001524,27/04/2022,1423310,5000.00,Precept
North West Leicestershire District Council,31UH,Finance,Financial Planning,FINPLA,Ravenstone With Snibston PC,A001364,27/04/2022,1423311,47500.00,Precept
North West Leicestershire District Council,31UH,Finance,Financial Planning,FINPLA,Packington Parish Council,A001257,27/04/2022,1423312,11254.00,Precept
North West Leicestershire District Council,31UH,Finance,Financial Planning,FINPLA,Osgathorpe Parish Council,A001251,27/04/2022,1423313,2328.50,Precept
North West Leicestershire District Council,31UH,Finance,Financial Planning,FINPLA,"Oakthorpe, Donisthorpe & Acresford Parish Council",A001234,27/04/2022,1423314,40500.00,Precept
North West Leicestershire District Council,31UH,Finance,Financial Planning,FINPLA,Measham Parish Council,A014805,27/04/2022,1423315,59340.00,Precept
North West Leicestershire District Council,31UH,Finance,Financial Planning,FINPLA,Long Whatton & Diseworth PC,A001010,27/04/2022,1423316,25000.00,Precept
North West Leicestershire District Council,31UH,Finance,Financial Planning,FINPLA,Lockington Cum Hemington PC,A000999,27/04/2022,1423317,10000.00,Precept
North West Leicestershire District Council,31UH,Finance,Financial Planning,FINPLA,Kegworth Parish Council,A000882,27/04/2022,1423318,60413.50,Precept
North West Leicestershire District Council,31UH,Finance,Financial Planning,FINPLA,Ibstock Parish Council,A000807,27/04/2022,1423320,125000.00,Precept
North West Leicestershire District Council,31UH,Finance,Financial Planning,FINPLA,Hugglescote & Donington Le Heath,A038616,27/04/2022,1423321,71502.00,Precept
North West Leicestershire District Council,31UH,Finance,Financial Planning,FINPLA,Heather Parish Council,A000749,27/04/2022,1423322,7000.00,Precept
North West Leicestershire District Council,31UH,Finance,Financial Planning,FINPLA,Ellistown And Battleflat Parish Council,A021576,27/04/2022,1423323,32392.60,Precept
North West Leicestershire District Council,31UH,Finance,Financial Planning,FINPLA,Coleorton Parish Council,A000382,27/04/2022,1423324,7877.00,Precept
North West Leicestershire District Council,31UH,Finance,Financial Planning,FINPLA,Charley Parish Council,A000322,27/04/2022,1423325,4050.00,Precept
North West Leicestershire District Council,31UH,Finance,Financial Planning,FINPLA,Castle Donington Parish Council,A000300,27/04/2022,1423326,199963.50,Precept
North West Leicestershire District Council,31UH,Finance,Financial Planning,FINPLA,Breedon On The Hill Parish Council,A000215,27/04/2022,1423327,13383.50,Precept
North West Leicestershire District Council,31UH,Finance,Financial Planning,FINPLA,Belton Parish Council,A000164,27/04/2022,1423328,15000.00,Precept
North West Leicestershire District Council,31UH,Finance,Financial Planning,FINPLA,Ashby Woulds Town Council,A000089,27/04/2022,1423329,58846.50,Precept
North West Leicestershire District Council,31UH,Finance,Financial Planning,FINPLA,Ashby De La Zouch Town Council,A000091,27/04/2022,1423330,277975.14,Precept
North West Leicestershire District Council,31UH,Finance,Financial Planning,FINPLA,Appleby Magna Parish Council,A000060,27/04/2022,1423331,14000.00,Precept
North West Leicestershire District Council,31UH,Neighbourhoods & Communities,N & C Community Safety,NACCS,Donisthorpe Community Group,A047416,27/04/2022,1423158,250.00,Small Grant Scheme
North West Leicestershire District Council,31UH,Housing,HRA Housing Management,HRAHM,JLA Limited,A043639,27/04/2022,1423174,302.00,Cleaning & Domestic Equipment
North West Leicestershire District Council,31UH,Housing Repairs,HRA Housing Repairs & Maintenance,HRAHRM,Morgan Lambert Limited,A044192,27/04/2022,1423176,700.00,Servicing
North West Leicestershire District Council,31UH,Neighbourhoods & Communities,N & C Community Safety,NACCS,Measham Parish Council,A001082,27/04/2022,1423181,250.00,Small Grant Scheme
North West Leicestershire District Council,31UH,Street Management,Environment - Street Scene,ESS,Water Plus Limited,A044043,27/04/2022,1423193,283.33,Sewerage & Environmental
North West Leicestershire District Council,31UH,Property Services,Property Facilities Management,PROPFM,Water Plus Limited,A044043,27/04/2022,1423195,409.69,Water Charges (Metered)
North West Leicestershire District Council,31UH,Property Services,Property Commercial Lettings,PROPCL,British Gas,A042590,27/04/2022,1423235,360.24,Gas
North West Leicestershire District Council,31UH,Finance,Exchequer Services,EXCH,Comensura Limited,A036958,27/04/2022,1423248,23191.97,Agency Staff
North West Leicestershire District Council,31UH,Finance,Revenues,REVS,Jacobs,A045373,27/04/2022,1423253,753.00,Financial Collection Services
North West Leicestershire District Council,31UH,Housing Repairs,HRA Housing Repairs & Maintenance,HRAHRM,T & S Heating Ltd,A046054,12/04/2022,1422677,2485.63,Responsive Repairs
North West Leicestershire District Council,31UH,Housing Repairs,HRA Housing Repairs & Maintenance,HRAHRM,Severn Trent Water Limited,A001468,12/04/2022,1422682,1049.65,Water Charges (Metered)
North West Leicestershire District Council,31UH,Finance,Exchequer Services,EXCH,Comensura Limited,A036958,12/04/2022,1422692,28816.42,Agency Staff
North West Leicestershire District Council,31UH,Housing Repairs,HRA Housing Repairs & Maintenance,HRAHRM,Dalrod UK Ltd,A046051,12/04/2022,1422770,1093.73,Sewerage & Environmental
North West Leicestershire District Council,31UH,Housing Repairs,HRA Housing Repairs & Maintenance,HRAHRM,Sure Maintenance Ltd,A040460,12/04/2022,1422771,254.56,Plumbing & Heating
North West Leicestershire District Council,31UH,Finance,Exchequer Services,EXCH,Click Travel Ltd,A044308,12/04/2022,1422867,6587.54,Accomodation and Travel
North West Leicestershire District Council,31UH,Finance,Exchequer Services,EXCH,Click Travel Ltd,A044308,12/04/2022,1422868,5696.78,Accomodation and Travel
North West Leicestershire District Council,31UH,Finance,Exchequer Services,EXCH,HM Revenues & Customs,A038465,12/04/2022,1422874,2046.00,Payment To Inland Revenue
North West Leicestershire District Council,31UH,Neighbourhoods & Communities,N & C Neighbourhoods,NACN,Albert Village Allotment Association,A047408,12/04/2022,1422890,250.00,Small Grant Scheme
North West Leicestershire District Council,31UH,Neighbourhoods & Communities,N & C Neighbourhoods,NACN,Swepstone Parish Council,A001613,12/04/2022,1422891,250.00,Small Grant Scheme
North West Leicestershire District Council,31UH,Neighbourhoods & Communities,N & C Neighbourhoods,NACN,Friends of Greenhill Tenants Association,A045773,12/04/2022,1422892,250.00,Small Grant Scheme
North West Leicestershire District Council,31UH,Neighbourhoods & Communities,N & C Neighbourhoods,NACN,Charles Booth Centre,A001665,12/04/2022,1422893,250.00,Small Grant Scheme
North West Leicestershire District Council,31UH,Housing Repairs,HRA Housing Repairs & Maintenance,HRAHRM,Dalrod UK Ltd,A046051,12/04/2022,1422894,597.57,Sewerage & Environmental
North West Leicestershire District Council,31UH,Housing Repairs,HRA Housing Repairs & Maintenance,HRAHRM,Dalrod UK Ltd,A046051,12/04/2022,1422895,3172.44,Sewerage & Environmental
North West Leicestershire District Council,31UH,Property Services,Property Facilities Management,PROPFM,British Telecommunications Plc,A000233,20/04/2022,1422956,546.75,Telephones
North West Leicestershire District Council,31UH,Legal & Democratic,Civic Expenses,LDCE,Civica Ltd,A021357,06/07/2022,1422960,-7250.00,Computing
North West Leicestershire District Council,31UH,Legal & Democratic,Civic Expenses,LDCE,Civica Ltd,A021357,06/07/2022,1422961,-7250.00,Computing
North West Leicestershire District Council,31UH,Legal & Democratic,Civic Expenses,LDCE,Civica Ltd,A021357,06/07/2022,1422962,-7250.00,Computing
North West Leicestershire District Council,31UH,Legal & Democratic,Civic Expenses,LDCE,Civica Ltd,A021357,06/07/2022,1422963,7010.00,Computing
North West Leicestershire District Council,31UH,Legal & Democratic,Civic Expenses,LDCE,Civica Ltd,A021357,06/07/2022,1422964,7010.00,Computing
North West Leicestershire District Council,31UH,Legal & Democratic,Civic Expenses,LDCE,Civica Ltd,A021357,06/07/2022,1422965,7010.00,Computing
North West Leicestershire District Council,31UH,Neighbourhoods & Communities,N & C Community Safety,NACCS,Ashby De La Zouch Town Council,A000091,20/04/2022,1422972,250.00,Small Grant Scheme
North West Leicestershire District Council,31UH,Legal & Democratic,Electoral & Land Charges,LDELC,Sweet & Maxwell Ltd,A001611,20/04/2022,1422979,314.00,Books & Publications
North West Leicestershire District Council,31UH,Finance,Revenues,REVS,Browne Jacobson LLP,A042988,20/04/2022,1423022,910.50,Legal & Professional Services
North West Leicestershire District Council,31UH,Housing,HRA Housing Management,HRAHM,PPG Architectural Coatings Ltd,A000876,20/04/2022,1423024,1881.12,Internal Decorations
North West Leicestershire District Council,31UH,Housing,HRA Housing Management,HRAHM,Tennals Pest Control,A045705,20/04/2022,1423025,825.00,Pest Control Service
North West Leicestershire District Council,31UH,Legal & Democratic,Legal Services,LDLS,Browne Jacobson LLP,A042988,20/04/2022,1423026,1295.82,Legal & Professional Services
North West Leicestershire District Council,31UH,Legal & Democratic,Legal Services,LDLS,Browne Jacobson LLP,A042988,20/04/2022,1423027,2683.00,Legal & Professional Services
North West Leicestershire District Council,31UH,Housing,HRA Housing Management,HRAHM,Redacted-Personal Data,A047411,20/04/2022,1423034,250.00,Under Occupancy Incentives
North West Leicestershire District Council,31UH,Housing,HRA Housing Management,HRAHM,Redacted-Personal Data,A047412,20/04/2022,1423035,250.00,Under Occupancy Incentives
North West Leicestershire District Council,31UH,Finance,Exchequer Services,EXCH,Comensura Limited,A036958,06/04/2022,1422465,28035.74,Agency Staff
North West Leicestershire District Council,31UH,Environmental Health,Environmental Health & Licensing,EEHL,Animal Care Services Limited,A046488,06/04/2022,1422481,2224.95,Stray Dog Service
North West Leicestershire District Council,31UH,Neighbourhoods & Communities,N & C Neighbourhoods,NACN,New Swannington Primary School,A035642,06/04/2022,1422493,250.00,Small Grant Scheme
North West Leicestershire District Council,31UH,Neighbourhoods & Communities,N & C Neighbourhoods,NACN,Without Walls Christian Fellowship,A035916,06/04/2022,1422494,500.00,Grants
North West Leicestershire District Council,31UH,Planning & Development,Environment Planning Policy,EPP,Land Use Consultants Ltd,A044090,06/04/2022,1422497,5367.00,Consultants Fees
North West Leicestershire District Council,31UH,Housing Repairs,HRA Housing Repairs & Maintenance,HRAHRM,Everwarm Limited,A044582,06/04/2022,1422498,19715.27,Contract Payments (Dws) Ext
North West Leicestershire District Council,31UH,Housing Repairs,HRA Housing Repairs & Maintenance,HRAHRM,Everwarm Limited,A044582,06/04/2022,1422499,10799.09,Contract Payments (Dws) Ext
North West Leicestershire District Council,31UH,Housing Repairs,HRA Housing Repairs & Maintenance,HRAHRM,Everwarm Limited,A044582,06/04/2022,1422500,18558.92,Contract Payments (Dws) Ext
North West Leicestershire District Council,31UH,Information Technology,ICT Services,ICT,EE Ltd (Airtime),A018592,06/04/2022,1422503,1259.42,Mobile Telephones
North West Leicestershire District Council,31UH,Information Technology,ICT Services,ICT,EE Ltd (Airtime),A018592,06/04/2022,1422504,5854.61,Mobile Telephones
North West Leicestershire District Council,31UH,Housing Repairs,HRA Housing Repairs & Maintenance,HRAHRM,Alliance Contracting Solutions Ltd,A043325,06/04/2022,1422510,2870.16,General Repairs (Property Services)
North West Leicestershire District Council,31UH,Housing Repairs,HRA Housing Repairs & Maintenance,HRAHRM,Alliance Contracting Solutions Ltd,A043325,06/04/2022,1422511,2269.96,General Repairs (Property Services)
North West Leicestershire District Council,31UH,Housing Repairs,HRA Housing Repairs & Maintenance,HRAHRM,Alliance Contracting Solutions Ltd,A043325,06/04/2022,1422512,1069.13,General Repairs (Property Services)
North West Leicestershire District Council,31UH,Housing Repairs,HRA Housing Repairs & Maintenance,HRAHRM,Alliance Contracting Solutions Ltd,A043325,06/04/2022,1422513,5254.90,General Repairs (Property Services)
North West Leicestershire District Council,31UH,Housing Repairs,HRA Housing Repairs & Maintenance,HRAHRM,Westleigh Developments Ltd,A039359,06/04/2022,1422514,75579.48,Contract Payments (Dws) Ext
North West Leicestershire District Council,31UH,Housing,HRA Housing Management,HRAHM,JLA Limited,A043639,06/04/2022,1422515,282.00,Cleaning & Domestic Equipment
North West Leicestershire District Council,31UH,Property Services,Property Commercial Lettings,PROPCL,British Gas Business,A035181,06/04/2022,1422518,340.05,Electricity
North West Leicestershire District Council,31UH,Property Services,Property Commercial Lettings,PROPCL,Water Plus Limited,A044043,06/04/2022,1422519,370.11,Water Charges (Metered)
North West Leicestershire District Council,31UH,Street Management,Environment Parks,ENOP,Allstar Business Solutions Ltd,A039425,06/04/2022,1422520,287.91,Petrol
North West Leicestershire District Council,31UH,Housing,HRA Housing Management,HRAHM,Redacted-Personal Data,A037553,06/04/2022,1422523,496.00,Compensation
North West Leicestershire District Council,31UH,Housing,HRA Housing Management,HRAHM,JLA Limited,A043639,06/04/2022,1422527,412.00,Cleaning & Domestic Equipment
North West Leicestershire District Council,31UH,Information Technology,ICT Services,ICT,British Telecommunications Plc,A000233,06/04/2022,1422529,349.47,General Repairs
North West Leicestershire District Council,31UH,Economic Development,Business Focus Group,BFG,Once Removed Antiques,A047402,06/04/2022,1422586,774.00,Grants
North West Leicestershire District Council,31UH,Economic Development,Business Focus Group,BFG,Gastall Dog Grooming,A044705,06/04/2022,1422587,990.00,Grants
North West Leicestershire District Council,31UH,Economic Development,Business Focus Group,BFG,Ashby Toolbox,A047121,06/04/2022,1422588,1000.00,Grants
North West Leicestershire District Council,31UH,Housing Repairs,HRA Housing Repairs & Maintenance,HRAHRM,Sure Maintenance Ltd,A040460,06/04/2022,1422592,10209.30,Plumbing & Heating
North West Leicestershire District Council,31UH,Housing Repairs,HRA Housing Repairs & Maintenance,HRAHRM,Sure Maintenance Ltd,A040460,06/04/2022,1422593,3349.72,Plumbing & Heating
North West Leicestershire District Council,31UH,Housing Repairs,HRA Housing Repairs & Maintenance,HRAHRM,Sure Maintenance Ltd,A040460,06/04/2022,1422594,3896.10,Plumbing & Heating
North West Leicestershire District Council,31UH,Street Management,Environment - Street Scene,ESS,Hinckley & Bosworth Borough Council,A000770,20/04/2022,1423122,1530.00,Publicity & Promotion
North West Leicestershire District Council,31UH,Street Management,Environment Waste Management,ENOWM,ESE World Limited,A001253,20/04/2022,1423131,1325.00,General Materials
North West Leicestershire District Council,31UH,Neighbourhoods & Communities,N & C Neighbourhoods,NACN,TB Sport,A047373,12/04/2022,1422876,5468.70,Contributions
North West Leicestershire District Council,31UH,Street Management,Environment Waste Management,ENOWM,Groundsman Tools Ltd,A030744,27/04/2022,1423258,2013.00,Operational Equipment
North West Leicestershire District Council,31UH,Street Management,Environment Parks,ENOP,Manor farm Nurseries,A034561,27/04/2022,1423544,1405.20,General Repairs
North West Leicestershire District Council,31UH,Property Services,Property Commercial Lettings,PROPCL,Lift & Engineering Services Ltd,A042320,06/04/2022,1419073,254.83,General Repairs
North West Leicestershire District Council,31UH,Property Services,Property Facilities Management,PROPFM,Century Fire & Security Limited,A020453,06/04/2022,1422009,2628.00,Building Security
North West Leicestershire District Council,31UH,Street Management,Environment Transport,ENOT,CWT Fleet & Recovery Ltd,A046966,06/04/2022,1422581,326.00,Repairs - Parts
North West Leicestershire District Council,31UH,Communications,Corporate - Customer Services,CS,Centre for Assessment,A046011,20/04/2022,1423138,812.50,Legal & Professional Services
North West Leicestershire District Council,31UH,Information Technology,ICT Services,ICT,Nottingham City Council,A041558,12/04/2022,1422841,306.00,Training Expenses
North West Leicestershire District Council,31UH,Street Management,Environment Parks,ENOP,Groundsman Tools Ltd,A030744,12/04/2022,1422875,354.95,Protective Clothing
North West Leicestershire District Council,31UH,Planning & Development,Environment Planning Policy,EPP,Blaby District Council,A000180,12/04/2022,1422887,895.00,Contribution to Strategic Growth Plan
North West Leicestershire District Council,31UH,Street Management,Environment Parks,ENOP,Keep Britain Tidy,A025681,12/04/2022,1422902,339.00,Green Flag Award Application
North West Leicestershire District Council,31UH,Street Management,Environment Parks,ENOP,Keep Britain Tidy,A025681,12/04/2022,1422904,339.00,Green Flag Award Application
North West Leicestershire District Council,31UH,Housing,HRA Housing Management,HRAHM,Coalville Signs,A000370,12/04/2022,1422819,465.00,Signage
North West Leicestershire District Council,31UH,Corporate Director,Human Resources,HR,Stephenson College,A000373,12/04/2022,1422851,1250.00,Corporate Training
North West Leicestershire District Council,31UH,Planning & Development,Environment - Development Control,EDC,Charnwood Borough Council,A000323,12/04/2022,1422878,37000.00,Building Control Service
North West Leicestershire District Council,31UH,Housing,HRA Housing Management,HRAHM,exi,A045557,12/04/2022,1422883,6250.00,Legal & Professional Services
North West Leicestershire District Council,31UH,Property Services,Property Commercial Lettings,PROPCL,Calbarrie Ltd,A021932,12/04/2022,1422889,1584.60,General Repairs
North West Leicestershire District Council,31UH,Information Technology,ICT Services,ICT,Idox Software Ltd,A034157,12/04/2022,1422665,9025.00,Contract Payments (Other) Ext
North West Leicestershire District Council,31UH,Information Technology,ICT Services,ICT,Phoenix Software Limited,A001298,12/04/2022,1422710,494.65,Admin Equipment - Maintenance
North West Leicestershire District Council,31UH,Street Management,Environment Transport,ENOT,ESPO,A000958,12/04/2022,1422822,798.78,Consumable Cleaning Materials/Hygiene
North West Leicestershire District Council,31UH,Street Management,Environment Waste Management,ENOWM,Whitespace Work Software Ltd,A041243,12/04/2022,1422838,8574.00,Service Contracts
North West Leicestershire District Council,31UH,Housing Repairs,HRA Housing Repairs & Maintenance,HRAHRM,Capita Gas Registration & Ancillary Services Ltd,A036004,12/04/2022,1422843,266.50,Professional Fees
North West Leicestershire District Council,31UH,Housing Repairs,HRA Housing Repairs & Maintenance,HRAHRM,Severn Trent Water Limited,A001468,27/04/2022,1422683,270.28,Water Charges (Metered)
North West Leicestershire District Council,31UH,Street Management,Environment Parks,ENOP,Keith Cook Training Services,A027792,27/04/2022,1423121,523.00,Training Expenses
North West Leicestershire District Council,31UH,Street Management,Environment - Street Scene,ESS,GB Catering Equipment Ltd,A046915,27/04/2022,1423155,558.00,Grants
North West Leicestershire District Council,31UH,Housing,HRA Housing Management,HRAHM,MRC Community Action,A001208,27/04/2022,1423364,484.00,HRA Hardship Fund Expenditure
North West Leicestershire District Council,31UH,Street Management,Environment Transport,ENOT,Reflec Signs & Graphics Ltd,A025348,27/04/2022,1423373,1200.00,Repairs - Parts
North West Leicestershire District Council,31UH,Street Management,Environment Transport,ENOT,Reflec Signs & Graphics Ltd,A025348,27/04/2022,1423374,1180.00,Repairs - Parts
North West Leicestershire District Council,31UH,Economic Development,Business Focus Group,BFG,Helter Skelter Arts Ltd,A043059,27/04/2022,1423407,740.00,Promotional Expenditure
North West Leicestershire District Council,31UH,Leisure & Culture,Sport & Physical Activity,SPA,Twenty Twenty,A047372,27/04/2022,1423535,870.00,Healthcare Workshop
North West Leicestershire District Council,31UH,Property Services,Property Commercial Lettings,PROPCL,Pitney Bowes,A037177,06/04/2022,1421102,289.88,Postages
North West Leicestershire District Council,31UH,Property Services,Property Commercial Lettings,PROPCL,Secom Plc,A003044,06/04/2022,1422069,2089.15,Alt & Mtce-Fixed Plant
North West Leicestershire District Council,31UH,Street Management,Environment Transport,ENOT,Terberg Matec UK Limited,A001647,06/04/2022,1422524,2268.77,Repairs - Parts
North West Leicestershire District Council,31UH,Street Management,Environment Transport,ENOT,Riverside Truck Rental Ltd,A045702,06/04/2022,1422525,625.40,Hire Of Operational Equipment
North West Leicestershire District Council,31UH,Property Services,Property Facilities Management,PROPFM,Westbury Industrial Supplies Limited,A009933,06/04/2022,1422534,560.05,Protective Clothing
North West Leicestershire District Council,31UH,Street Management,Environment Transport,ENOT,Triscan Systems Limited,A036521,06/04/2022,1422549,295.00,Operational Equipment
North West Leicestershire District Council,31UH,Street Management,Environment Transport,ENOT,Paynes Garages Ltd,A046151,06/04/2022,1422550,453.33,Repairs - Parts
North West Leicestershire District Council,31UH,Street Management,Environment Transport,ENOT,Enterprise Rent-A-Car UK Ltd,A046419,06/04/2022,1422565,761.60,Hire Of Operational Equipment
North West Leicestershire District Council,31UH,Street Management,Environment Waste Management,ENOWM,Hinckley & Bosworth Borough Council,A000770,06/04/2022,1422570,1430.00,Publicity & Promotion
North West Leicestershire District Council,31UH,Property Services,Property Facilities Management,PROPFM,Coalville Cleaning Services,A003037,06/04/2022,1422575,355.18,Contract Cleaning
North West Leicestershire District Council,31UH,Property Services,Property Facilities Management,PROPFM,Coalville Cleaning Services,A003037,06/04/2022,1422576,422.28,Contract Cleaning
North West Leicestershire District Council,31UH,Neighbourhoods & Communities,N & C Community Safety,NACCS,Leicestershire County Council,A000950,06/04/2022,1422580,2500.00,Contributions
North West Leicestershire District Council,31UH,Chief Exec,Chief Executive,CHEX,Valuation Office Agency,A047144,06/04/2022,1422582,4900.00,Legal Fees
North West Leicestershire District Council,31UH,Finance,Financial Planning,FINPLA,Hinckley & Bosworth Borough Council,A000770,06/04/2022,1422589,9697.02,Legal & Professional Services
North West Leicestershire District Council,31UH,Economic Development,Business Focus Group,BFG,Simon Foote Architects,A045677,06/04/2022,1422591,350.00,Consultants Fees
North West Leicestershire District Council,31UH,Street Management,Environment Transport,ENOT,Digraph Transport Supplies Ltd,A000486,20/04/2022,1421436,350.59,Repairs - Parts
North West Leicestershire District Council,31UH,Housing,HRA Housing Management,HRAHM,Aareon UK Ltd,A045197,06/04/2022,1422611,870.00,Contract Payments (Other) Ext
North West Leicestershire District Council,31UH,Housing,HRA Housing Management,HRAHM,Aareon UK Ltd,A045197,06/04/2022,1422612,435.00,Contract Payments (Other) Ext
North West Leicestershire District Council,31UH,Housing,HRA Housing Management,HRAHM,Aareon UK Ltd,A045197,06/04/2022,1422613,1305.00,Contract Payments (Other) Ext
North West Leicestershire District Council,31UH,Housing,HRA Housing Management,HRAHM,Aareon UK Ltd,A045197,06/04/2022,1422615,870.00,Contract Payments (Other) Ext
North West Leicestershire District Council,31UH,Housing,HRA Housing Management,HRAHM,Aareon UK Ltd,A045197,06/04/2022,1422616,2610.00,Contract Payments (Other) Ext
North West Leicestershire District Council,31UH,Finance,Financial Planning,FINPLA,Praxis Procurement Ltd,A046964,27/04/2022,1422006,21600.00,Consultants Fees
North West Leicestershire District Council,31UH,Information Technology,ICT Services,ICT,Phoenix Software Limited,A001298,27/04/2022,1422578,6400.00,Admin Equipment - Maintenance
North West Leicestershire District Council,31UH,Housing,HRA Performance & Business Support,HRAPBS,Baily Garner LLP,A043845,27/04/2022,1422583,1930.00,Legal & Professional Services
North West Leicestershire District Council,31UH,Environmental Health,Environmental Health & Licensing,EEHL,Vivid Resourcing,A044601,27/04/2022,1423030,517.55,Agency Staff
North West Leicestershire District Council,31UH,Leisure & Culture,Cultural Services Arts & Events,CULTEV,Field and Lawn Ltd,A042594,27/04/2022,1423049,1048.60,Coalville Christmas Decorations
North West Leicestershire District Council,31UH,Environmental Health,Environmental Health & Licensing,EEHL,Eville And Jones Limited,A033670,27/04/2022,1423162,3740.40,Vet Inspection
North West Leicestershire District Council,31UH,Information Technology,ICT Services,ICT,ACS Systems (UK) Ltd T/a ACS Office Solutions,A043447,27/04/2022,1423165,1566.00,Admin Equipment - Purchased & Recharged
North West Leicestershire District Council,31UH,Planning & Development,Environment - Development Control,EDC,Crusader Limited (T/A Three Fives Media),A028435,27/04/2022,1423167,273.25,Office Expenses
North West Leicestershire District Council,31UH,Planning & Development,Environment - Development Control,EDC,Jonathan Gaynor Planning and Enforcement Services,A047213,27/04/2022,1423177,1575.00,External Legal Fees & Advice
North West Leicestershire District Council,31UH,Housing Repairs,HRA Housing Repairs & Maintenance,HRAHRM,Anthony Hope MCIAT,A047394,27/04/2022,1423237,12885.00,Contract Payments (Dws) Ext
North West Leicestershire District Council,31UH,Street Management,Environment Waste Management,ENOWM,Larac,A024363,27/04/2022,1423245,445.00,Subscriptions
North West Leicestershire District Council,31UH,Street Management,Environment Parks,ENOP,PR Horticultural Services Limited,A046639,06/04/2022,1420363,4145.60,Operational Equipment
North West Leicestershire District Council,31UH,Property Services,Property Facilities Management,PROPFM,John Merison BMC Ltd,A001092,06/04/2022,1421480,600.00,General Repairs
North West Leicestershire District Council,31UH,Housing Repairs,HRA Housing Repairs & Maintenance,HRAHRM,Michael Dyson Associates Ltd,A028431,06/04/2022,1422440,436.00,Legal & Professional Services
North West Leicestershire District Council,31UH,Street Management,Environment Parks,ENOP,PR Horticultural Services Limited,A046639,06/04/2022,1422454,2137.00,Operational Equipment
North West Leicestershire District Council,31UH,Street Management,Environment - Street Scene,ESS,National Association of British,A032899,06/04/2022,1422457,2268.00,Subscriptions
North West Leicestershire District Council,31UH,Street Management,Environment Transport,ENOT,J F Lloyd & Sons,A000991,06/04/2022,1422559,290.00,Hire Of Operational Equipment
North West Leicestershire District Council,31UH,Street Management,Environment Transport,ENOT,Kilworth Machinery Ltd,A041200,06/04/2022,1422562,404.75,Scheduled Servicing - Parts
North West Leicestershire District Council,31UH,Street Management,Environment Transport,ENOT,Kilworth Machinery Ltd,A041200,06/04/2022,1422563,663.10,Scheduled Servicing - Parts
North West Leicestershire District Council,31UH,Housing,HRA Housing Management,HRAHM,exi,A045557,06/04/2022,1422569,6250.00,Legal & Professional Services
North West Leicestershire District Council,31UH,Information Technology,ICT Services,ICT,Premier Paper Group,A042438,06/04/2022,1422573,694.75,Consumable Materials
North West Leicestershire District Council,31UH,Housing,HRA Housing Management,HRAHM,Fretwell Print and Design Limited,A045984,20/04/2022,1423123,716.00,Annual Report To Tenants
North West Leicestershire District Council,31UH,Planning & Development,Environment - Development Control,EDC,United Utilities Water Ltd,A047240,12/04/2022,1422439,1054.48,Trent Rivers Analysis
North West Leicestershire District Council,31UH,Housing,HRA Housing Management,HRAHM,James Andrews Recruitment Solutions,A036290,12/04/2022,1422445,1113.63,Agency Staff
North West Leicestershire District Council,31UH,Housing,HRA Housing Management,HRAHM,James Andrews Recruitment Solutions,A036290,12/04/2022,1422446,1106.25,Agency Staff
North West Leicestershire District Council,31UH,Housing Strategy,Community - Housing Strategy,HS,MRC Community Action,A001208,12/04/2022,1422448,504.00,HRA Hardship Fund Expenditure
North West Leicestershire District Council,31UH,Corporate Director,Corporate Director,CORDI,IDP (Central) Limited,A047366,12/04/2022,1422535,6230.00,Contract Payments (Other) Ext
North West Leicestershire District Council,31UH,Corporate Director,Corporate Director,CORDI,IDP (Central) Limited,A047366,12/04/2022,1422536,6500.00,Contract Payments (Other) Ext
North West Leicestershire District Council,31UH,Corporate Director,Corporate Director,CORDI,IDP (Central) Limited,A047366,12/04/2022,1422537,13000.00,Contract Payments (Other) Ext
North West Leicestershire District Council,31UH,Leisure & Culture,Sport & Physical Activity,SPA,Dura-Sport,A016357,12/04/2022,1422664,260.00,Routine Ground Maintenance
North West Leicestershire District Council,31UH,Housing Repairs,HRA Housing Repairs & Maintenance,HRAHRM,Travis Perkins Trading Co Ltd,A001693,12/04/2022,1422667,1268.00,General Materials
North West Leicestershire District Council,31UH,Housing Repairs,HRA Housing Repairs & Maintenance,HRAHRM,Travis Perkins Trading Co Ltd,A001693,12/04/2022,1422668,3409.26,General Materials
North West Leicestershire District Council,31UH,Housing Repairs,HRA Housing Repairs & Maintenance,HRAHRM,Travis Perkins Trading Co Ltd,A001693,12/04/2022,1422669,124674.61,General Materials
North West Leicestershire District Council,31UH,Housing Repairs,HRA Housing Repairs & Maintenance,HRAHRM,Travis Perkins Trading Co Ltd,A001693,12/04/2022,1422670,4695.36,General Materials
North West Leicestershire District Council,31UH,Housing Repairs,HRA Housing Repairs & Maintenance,HRAHRM,Travis Perkins Trading Co Ltd,A001693,12/04/2022,1422671,6074.76,General Materials
North West Leicestershire District Council,31UH,Housing Repairs,HRA Housing Repairs & Maintenance,HRAHRM,Travis Perkins Trading Co Ltd,A001693,12/04/2022,1422672,2259.50,General Materials
North West Leicestershire District Council,31UH,Housing Repairs,HRA Housing Repairs & Maintenance,HRAHRM,Travis Perkins Trading Co Ltd,A001693,12/04/2022,1422673,1268.00,General Materials
North West Leicestershire District Council,31UH,Housing Repairs,HRA Housing Repairs & Maintenance,HRAHRM,Travis Perkins Trading Co Ltd,A001693,12/04/2022,1422674,127489.31,General Materials
North West Leicestershire District Council,31UH,Housing Repairs,HRA Housing Repairs & Maintenance,HRAHRM,Castle Damp & Timber Specialists Limited,A046384,27/04/2022,1423402,3294.00,Legal & Professional Services
North West Leicestershire District Council,31UH,Corporate Director,Human Resources,HR,Starfish,A047178,27/04/2022,1423408,3975.00,Employee Advertising
North West Leicestershire District Council,31UH,Finance,Financial Planning,FINPLA,Leicestershire County Council,A000950,20/04/2022,1420271,2885.76,PCN LEVY
North West Leicestershire District Council,31UH,Housing,HRA Older Persons Service,HRAOPS,Tunstall Healthcare (UK) Limited,A001701,20/04/2022,1422526,579.00,Alarm System Telephones
North West Leicestershire District Council,31UH,Property Services,Property Commercial Lettings,PROPCL,Urban Planters Leicestershire (limited),A003371,20/04/2022,1422531,552.50,Internal Decorations
North West Leicestershire District Council,31UH,Street Management,Environment Waste Management,ENOWM,Glasdon UK Ltd,A000671,20/04/2022,1422618,1593.42,General Materials
North West Leicestershire District Council,31UH,Street Management,Environment Parks,ENOP,Arco Limited,A000068,20/04/2022,1422659,269.13,Protective Clothing
North West Leicestershire District Council,31UH,Leisure & Culture,Sport & Physical Activity,SPA,Measham Leisure Centre,A027454,20/04/2022,1422678,344.99,Measham LC Lifestyle DD
North West Leicestershire District Council,31UH,Street Management,Environment Parks,ENOP,Regarde Security Ltd,A013049,20/04/2022,1422820,644.00,Security Services
North West Leicestershire District Council,31UH,Leisure & Culture,Sport & Physical Activity,SPA,Leicestershire County Council,A000950,20/04/2022,1422958,1836.84,LRSA Graduate Programme
North West Leicestershire District Council,31UH,Finance,Exchequer Services,EXCH,Capita Business Services Ltd,A002968,20/04/2022,1422973,5225.00,Computing
North West Leicestershire District Council,31UH,Property Services,Property Facilities Management,PROPFM,Coalville Cleaning Services,A003037,20/04/2022,1422974,1978.46,Contract Cleaning
North West Leicestershire District Council,31UH,Street Management,Environment Transport,ENOT,Reflec Signs & Graphics Ltd,A025348,20/04/2022,1422975,450.00,Operational Equipment - Rep & Maint
North West Leicestershire District Council,31UH,Planning & Development,Environment - Development Control,EDC,TMP Worldwide Ltd,A045319,20/04/2022,1422987,391.44,Advertising
North West Leicestershire District Council,31UH,Property Services,Property Facilities Management,PROPFM,John Merison BMC Ltd,A001092,20/04/2022,1422996,832.66,General Repairs
North West Leicestershire District Council,31UH,Property Services,Property Facilities Management,PROPFM,John Merison BMC Ltd,A001092,20/04/2022,1422997,251.64,General Repairs
North West Leicestershire District Council,31UH,Property Services,Property Commercial Lettings,PROPCL,Regarde Security Ltd,A013049,20/04/2022,1423003,552.00,Security Services
North West Leicestershire District Council,31UH,Property Services,Property Commercial Lettings,PROPCL,Regarde Security Ltd,A013049,20/04/2022,1423004,363.40,Building Security
North West Leicestershire District Council,31UH,Property Services,Property Commercial Lettings,PROPCL,Regarde Security Ltd,A013049,20/04/2022,1423005,630.65,Building Security
North West Leicestershire District Council,31UH,Leisure & Culture,Cultural Services Arts & Events,CULTEV,Electract Limited,A000548,20/04/2022,1423015,885.00,Coalville Christmas Decorations
North West Leicestershire District Council,31UH,Leisure & Culture,Cultural Services Arts & Events,CULTEV,Electract Limited,A000548,20/04/2022,1423016,840.00,Coalville Christmas Decorations
North West Leicestershire District Council,31UH,Corporate Director,Human Resources,HR,Health Management Ltd,A038840,20/04/2022,1423018,653.00,Medical Fees
North West Leicestershire District Council,31UH,Planning & Development,Environment Planning Policy,EPP,Land Use Consultants Ltd,A044090,20/04/2022,1423051,9574.00,Consultants Fees
North West Leicestershire District Council,31UH,Street Management,Environment Transport,ENOT,Terberg Matec UK Limited,A001647,12/04/2022,1422255,1340.64,Repairs - Parts
North West Leicestershire District Council,31UH,Street Management,Environment Transport,ENOT,JB Tool Hire Ltd,A011490,12/04/2022,1422435,1380.00,Hire Of Transport
North West Leicestershire District Council,31UH,Environmental Health,Environmental Health & Licensing,EEHL,Killgerm Chemicals Ltd,A000890,12/04/2022,1422437,303.56,Baits & Poisons
North West Leicestershire District Council,31UH,Street Management,Environment Transport,ENOT,Refuse Vehicle Solutions Ltd,A047317,12/04/2022,1422449,4370.00,Hire Of Transport
North West Leicestershire District Council,31UH,Corporate Director,Human Resources,HR,EMB Excellence Limited,A039939,12/04/2022,1422452,13210.00,Corporate Training
North West Leicestershire District Council,31UH,Planning & Development,Environment - Development Control,EDC,Jeremy Benn Associates Ltd (t/a JBA Consulting),A044010,12/04/2022,1422505,2761.00,Consultants Fees
North West Leicestershire District Council,31UH,Street Management,Environment Parks,ENOP,Rigby Taylor Limited,A001392,12/04/2022,1422533,1497.00,Operational Purchases
North West Leicestershire District Council,31UH,Property Services,Property Facilities Management,PROPFM,Calbarrie Ltd,A021932,12/04/2022,1422539,2654.25,Service Contracts - Premises costs
North West Leicestershire District Council,31UH,Street Management,Environment Transport,ENOT,Trade Price Windscreens Ltd,A040486,12/04/2022,1422543,255.00,Non Scheduled Maintenance - Parts
North West Leicestershire District Council,31UH,Street Management,Environment Transport,ENOT,Trade Price Windscreens Ltd,A040486,12/04/2022,1422544,430.00,Non Scheduled Maintenance - Parts
North West Leicestershire District Council,31UH,Street Management,Environment Transport,ENOT,Trade Price Windscreens Ltd,A040486,12/04/2022,1422545,270.00,Non Scheduled Maintenance - Parts
North West Leicestershire District Council,31UH,Property Services,Property Facilities Management,PROPFM,ADT Fire And Security,A000021,27/04/2022,1421464,282.34,Security Services
North West Leicestershire District Council,31UH,Housing Repairs,HRA Housing Repairs & Maintenance,HRAHRM,City Electrical Factors Ltd,A003893,27/04/2022,1422019,1999.98,Operational Equipment
North West Leicestershire District Council,31UH,Environmental Health,Environmental Health & Licensing,EEHL,Nottingham City Council,A041558,27/04/2022,1423151,575.00,Training Expenses
North West Leicestershire District Council,31UH,Economic Development,Business Focus Group,BFG,Tetra Tech Limited,A046837,27/04/2022,1423255,1100.00,Legal & Professional Services
North West Leicestershire District Council,31UH,Information Technology,ICT Services,ICT,ACS Systems (UK) Ltd T/a ACS Office Solutions,A043447,27/04/2022,1423256,3692.00,Admin Equipment - Purchased & Recharged
North West Leicestershire District Council,31UH,Finance,Financial Planning,FINPLA,Hinckley & Bosworth Borough Council,A000770,27/04/2022,1423257,945.00,Consultants Fees
North West Leicestershire District Council,31UH,Street Management,Environment Transport,ENOT,Watson Fuels,A047235,27/04/2022,1423259,37359.10,Diesel and Lubricants
North West Leicestershire District Council,31UH,Street Management,Environment Transport,ENOT,Enterprise Rent-A-Car UK Ltd,A046419,27/04/2022,1423266,633.92,Hire Of Transport
North West Leicestershire District Council,31UH,Information Technology,ICT Services,ICT,ACS Systems (UK) Ltd T/a ACS Office Solutions,A043447,27/04/2022,1423277,362.90,Operational Equipment
North West Leicestershire District Council,31UH,Street Management,Environment Transport,ENOT,S & B Tyres Limited,A034071,27/04/2022,1423283,800.00,Vehicle related Purchases
North West Leicestershire District Council,31UH,Housing,HRA Housing Management,HRAHM,James Andrews Recruitment Solutions,A036290,06/04/2022,1422450,1106.25,Agency Staff
North West Leicestershire District Council,31UH,Leisure & Culture,Sport & Physical Activity,SPA,World of Sheds Limited,A047393,06/04/2022,1422478,714.16,Allotment expenditure
North West Leicestershire District Council,31UH,Information Technology,ICT Services,ICT,dotdigital,A037038,06/04/2022,1422521,308.00,Administrative Equipment
North West Leicestershire District Council,31UH,Information Technology,ICT Services,ICT,dotdigital,A037038,06/04/2022,1422522,308.00,Administrative Equipment
North West Leicestershire District Council,31UH,Corporate Director,Human Resources,HR,Days Fleet,A046863,06/04/2022,1422610,2657.68,Items To Be Leased
North West Leicestershire District Council,31UH,Housing,HRA Housing Management,HRAHM,Aareon UK Ltd,A045197,06/04/2022,1422614,3480.00,Contract Payments (Other) Ext
North West Leicestershire District Council,31UH,Street Management,Environment Transport,ENOT,Watling JCB Ltd,A032114,06/04/2022,1422617,462.00,Vehicle Servicing
North West Leicestershire District Council,31UH,Street Management,Environment Transport,ENOT,Watson Fuels,A047235,27/04/2022,1421829,36281.57,Diesel and Lubricants
North West Leicestershire District Council,31UH,Street Management,Environment Transport,ENOT,Watson Fuels,A047235,27/04/2022,1422458,20925.10,Diesel and Lubricants
North West Leicestershire District Council,31UH,Street Management,Environment Transport,ENOT,Watson Fuels,A047235,27/04/2022,1422597,2064.09,Diesel and Lubricants
North West Leicestershire District Council,31UH,Housing Repairs,HRA Housing Repairs & Maintenance,HRAHRM,City Electrical Factors Ltd,A003893,27/04/2022,1422722,614.00,Operational Equipment
North West Leicestershire District Council,31UH,Housing Repairs,HRA Housing Repairs & Maintenance,HRAHRM,City Electrical Factors Ltd,A003893,27/04/2022,1422723,307.00,Operational Equipment
North West Leicestershire District Council,31UH,Housing Repairs,HRA Housing Repairs & Maintenance,HRAHRM,Severn Trent Water Limited,A001468,27/04/2022,1423200,1544.00,Sewerage & Environmental
North West Leicestershire District Council,31UH,Street Management,Environment Transport,ENOT,HGV Direct Ltd,A046956,27/04/2022,1423202,260.57,Repairs - Parts
North West Leicestershire District Council,31UH,Street Management,Environment Transport,ENOT,HGV Direct Ltd,A046956,27/04/2022,1423203,433.02,Vehicle related Purchases
North West Leicestershire District Council,31UH,Street Management,Environment Transport,ENOT,HGV Direct Ltd,A046956,27/04/2022,1423206,335.14,Repairs - Parts
North West Leicestershire District Council,31UH,Street Management,Environment Transport,ENOT,HGV Direct Ltd,A046956,27/04/2022,1423209,277.68,Repairs - Parts
North West Leicestershire District Council,31UH,Street Management,Environment Transport,ENOT,HGV Direct Ltd,A046956,27/04/2022,1423212,434.59,Vehicle related Purchases
North West Leicestershire District Council,31UH,Street Management,Environment Transport,ENOT,HGV Direct Ltd,A046956,27/04/2022,1423214,374.29,Repairs - Parts
North West Leicestershire District Council,31UH,Street Management,Environment Transport,ENOT,Riverside Truck Rental Ltd,A045702,12/04/2022,1422703,2448.30,Vehicle Hire
North West Leicestershire District Council,31UH,Street Management,Environment Transport,ENOT,Riverside Truck Rental Ltd,A045702,12/04/2022,1422704,5405.00,Hire Of Transport
North West Leicestershire District Council,31UH,Street Management,Environment Transport,ENOT,Riverside Truck Rental Ltd,A045702,12/04/2022,1422705,2685.00,Hire Of Transport
North West Leicestershire District Council,31UH,Street Management,Environment Transport,ENOT,Riverside Truck Rental Ltd,A045702,12/04/2022,1422706,6095.00,Hire Of Transport
North West Leicestershire District Council,31UH,Street Management,Environment Transport,ENOT,Terberg Matec UK Limited,A001647,12/04/2022,1422707,355.59,Repairs - Parts
North West Leicestershire District Council,31UH,Street Management,Environment Transport,ENOT,Terberg Matec UK Limited,A001647,12/04/2022,1422708,658.53,Repairs - Parts
North West Leicestershire District Council,31UH,Street Management,Environment Transport,ENOT,EPT Services,A039764,12/04/2022,1422726,1555.48,Protective Clothing
North West Leicestershire District Council,31UH,Neighbourhoods & Communities,N & C Community Safety,NACCS,exi,A045557,12/04/2022,1422727,2500.00,CCTV Provision
North West Leicestershire District Council,31UH,Street Management,Environment Transport,ENOT,Trade Price Windscreens Ltd,A040486,12/04/2022,1422762,930.00,Non Insurance Damage
North West Leicestershire District Council,31UH,Finance,Financial Planning,FINPLA,Moore Stephens Insight Ltd,A045967,12/04/2022,1422765,4000.00,Computing
North West Leicestershire District Council,31UH,Street Management,Environment Transport,ENOT,Terberg Matec UK Limited,A001647,12/04/2022,1422769,1069.03,Repairs - Parts
North West Leicestershire District Council,31UH,Housing Repairs,HRA Housing Repairs & Maintenance,HRAHRM,Seton Limited,A001465,12/04/2022,1422775,464.90,Consumable Materials
North West Leicestershire District Council,31UH,Housing,HRA Housing Management,HRAHM,ECO Skip Hire Ltd,A041559,12/04/2022,1422776,660.00,Service Contracts
North West Leicestershire District Council,31UH,Housing Repairs,HRA Housing Repairs & Maintenance,HRAHRM,Alliance Contracting Solutions Ltd,A043325,12/04/2022,1422826,20850.23,General Repairs (Property Services)
North West Leicestershire District Council,31UH,Legal & Democratic,Member Services,LDMS,G and G Signs,A001111,27/04/2022,1423198,679.45,Signs & Notices
North West Leicestershire District Council,31UH,Planning & Development,Environment - Development Control,EDC,Rob Thompson Urbanism Limited,A045846,27/04/2022,1423357,3675.00,Urban Design/Our Place Expenditure
North West Leicestershire District Council,31UH,Planning & Development,Environment - Development Control,EDC,Rob Thompson Urbanism Limited,A045846,27/04/2022,1423358,2100.00,Urban Design/Our Place Expenditure
North West Leicestershire District Council,31UH,Street Management,Environment - Street Scene,ESS,Coalville Cleaning Services,A003037,27/04/2022,1423360,376.65,Contract Cleaning
North West Leicestershire District Council,31UH,Street Management,Environment - Street Scene,ESS,Ivy Legal Limited,A046810,27/04/2022,1423361,750.00,Training Expenses
North West Leicestershire District Council,31UH,Neighbourhoods & Communities,N & C Community Safety,NACCS,Broadland Guarding Services Ltd,A042635,27/04/2022,1423366,4297.16,Service Contracts
North West Leicestershire District Council,31UH,Street Management,Environment Transport,ENOT,S & B Tyres Limited,A034071,27/04/2022,1423372,375.00,Vehicle related Purchases
North West Leicestershire District Council,31UH,Street Management,Environment Transport,ENOT,HGV Direct Ltd,A046956,27/04/2022,1423381,255.10,Vehicle related Purchases
North West Leicestershire District Council,31UH,Street Management,Environment Transport,ENOT,Hako Machines Limited,A034237,27/04/2022,1423382,522.50,Non Scheduled Maintenance - Parts
North West Leicestershire District Council,31UH,Street Management,Environment Transport,ENOT,Oakwood Environmental Services T/A Enva,A040993,27/04/2022,1423383,370.00,Hire Of Operational Equipment
North West Leicestershire District Council,31UH,Street Management,Environment Transport,ENOT,Snap-On Tools Ltd,A001521,27/04/2022,1423393,290.58,Subscriptions
North West Leicestershire District Council,31UH,Finance,Housing Benefits,BENS,DWP,A044065,06/04/2022,1420802,8178.00,Previous Years Subsidy Adjustment
North West Leicestershire District Council,31UH,Information Technology,ICT Services,ICT,ACS Systems (UK) Ltd T/a ACS Office Solutions,A043447,06/04/2022,1421481,1432.00,Operational Equipment
North West Leicestershire District Council,31UH,Information Technology,ICT Services,ICT,Phoenix Software Limited,A001298,06/04/2022,1421850,1023.60,Admin Equipment - Maintenance
North West Leicestershire District Council,31UH,Finance,Financial Planning,FINPLA,Hinckley & Bosworth Borough Council,A000770,06/04/2022,1422010,10143.44,Loans Repaid
North West Leicestershire District Council,31UH,Street Management,Environment Waste Management,ENOWM,Accent Wire Ltd,A044269,06/04/2022,1422185,2500.00,Operational Equipment
North West Leicestershire District Council,31UH,Neighbourhoods & Communities,N & C Community Safety,NACCS,Rapid Vision Systems Ltd,A044267,06/04/2022,1422226,6405.00,CCTV Equipment
North West Leicestershire District Council,31UH,Communications,Corporate - Communications,CP,Reflec Signs & Graphics Ltd,A025348,06/04/2022,1422388,695.00,Publicity & Promotion
North West Leicestershire District Council,31UH,Information Technology,ICT Services,ICT,Idox Software Ltd,A034157,06/04/2022,1422393,900.00,Computer Software Maintenance
North West Leicestershire District Council,31UH,Finance,Financial Planning,FINPLA,Readings Property Group Ltd,A045486,06/04/2022,1422444,14400.00,Legal & Professional Services
North West Leicestershire District Council,31UH,Leisure & Culture,Cultural Services Arts & Events,CULTEV,Office Needs Direct (UK) Ltd,A047191,06/04/2022,1422462,3779.90,Post Covid-Re-opening retail Expenditure
North West Leicestershire District Council,31UH,Information Technology,ICT Services,ICT,ACS Systems (UK) Ltd T/a ACS Office Solutions,A043447,06/04/2022,1422501,720.00,Administrative Equipment
North West Leicestershire District Council,31UH,Housing Repairs,HRA Housing Repairs & Maintenance,HRAHRM,Amazon Payments UK Ltd,A036743,20/04/2022,1421191,406.98,Books & Publications
North West Leicestershire District Council,31UH,Housing,HRA Older Persons Service,HRAOPS,Tunstall Healthcare (UK) Limited,A001701,20/04/2022,1421828,1698.40,Alarm System Telephones
North West Leicestershire District Council,31UH,Street Management,Environment - Street Scene,ESS,Midlands Co-operative  Ltd,A036454,20/04/2022,1422685,500.00,Welfare Funerals
North West Leicestershire District Council,31UH,Planning & Development,Environment Planning Policy,EPP,Leicestershire County Council,A027423,20/04/2022,1422816,8572.00,Leicestershire Strategic Transport Assessment
North West Leicestershire District Council,31UH,Economic Development,Business Focus Group,BFG,Ian Baker Consultancy Ltd,A047270,20/04/2022,1422871,1200.00,Consultants Fees
North West Leicestershire District Council,31UH,Housing Repairs,HRA Housing Repairs & Maintenance,HRAHRM,Tersus Consultancy Limited,A046925,20/04/2022,1422901,2500.00,Training Expenses
North West Leicestershire District Council,31UH,Street Management,Environment Transport,ENOT,J F Lloyd & Sons,A000991,20/04/2022,1422966,390.00,Hire Of Operational Equipment
North West Leicestershire District Council,31UH,Street Management,Environment Transport,ENOT,J F Lloyd & Sons,A000991,20/04/2022,1422967,260.00,Hire Of Operational Equipment
North West Leicestershire District Council,31UH,Housing,HRA Housing Management,HRAHM,James Andrews Recruitment Solutions,A036290,20/04/2022,1422970,885.00,Agency Staff
North West Leicestershire District Council,31UH,Property Services,Property Commercial Lettings,PROPCL,AES Sustainability Consultants Limited,A047281,20/04/2022,1422976,4930.00,Legal & Professional Services
North West Leicestershire District Council,31UH,Property Services,Property Facilities Management,PROPFM,Regarde Security Ltd,A013049,20/04/2022,1422998,570.40,Building Security
North West Leicestershire District Council,31UH,Property Services,Property Facilities Management,PROPFM,Regarde Security Ltd,A013049,20/04/2022,1422999,579.38,Building Security
North West Leicestershire District Council,31UH,Housing,HRA Housing Management,HRAHM,James Andrews Recruitment Solutions,A036290,20/04/2022,1423014,1116.75,Agency Staff
North West Leicestershire District Council,31UH,Chief Exec,Chief Executive,CHEX,Pollards Fruit & Veg,A045637,20/04/2022,1423020,320.00,Fruit Basket delivery
North West Leicestershire District Council,31UH,Housing,HRA Housing Management,HRAHM,Paygate Solutions Limited,A037426,20/04/2022,1423021,500.00,Contract Payments (Other) Ext
North West Leicestershire District Council,31UH,Property Services,Property Facilities Management,PROPFM,ABCA Systems Limited,A047114,20/04/2022,1423052,1790.74,Service Contracts - Premises costs
North West Leicestershire District Council,31UH,Housing,HRA Older Persons Service,HRAOPS,Tunstall Healthcare (UK) Limited,A001701,12/04/2022,1422195,4700.00,Alarm System Telephones
North West Leicestershire District Council,31UH,Environmental Health,Environmental Health & Licensing,EEHL,Tennals Pest Control,A045705,12/04/2022,1422566,1304.00,External Contractor Payments
North West Leicestershire District Council,31UH,Environmental Health,Environmental Health & Licensing,EEHL,Institute of Licensing Limited,A035655,12/04/2022,1422568,465.00,Training Expenses
North West Leicestershire District Council,31UH,Communications,Corporate - Customer Services,CS,Quadient UK Ltd,A000079,12/04/2022,1422571,2566.87,Equipment Operating Leases
North West Leicestershire District Council,31UH,Information Technology,ICT Services,ICT,Phoenix Software Limited,A001298,12/04/2022,1422579,7431.60,Phone system & network equipment
North West Leicestershire District Council,31UH,Corporate Director,Human Resources,HR,Wider Plan Ltd,A043948,12/04/2022,1422660,1048.00,Staff Benefit Scheme
North West Leicestershire District Council,31UH,Information Technology,ICT Services,ICT,Cuttlefish Multimedia Ltd,A032102,12/04/2022,1422661,1718.33,Website Maintenance
North West Leicestershire District Council,31UH,Street Management,Environment Parks,ENOP,Teleshore (UK) Ltd,A030449,12/04/2022,1422662,285.00,Operational Purchases
North West Leicestershire District Council,31UH,Leisure & Culture,Sport & Physical Activity,SPA,Bear Earth CIC,A047401,12/04/2022,1422663,300.00,Healthcare materials
North West Leicestershire District Council,31UH,Corporate Director,Human Resources,HR,Thomas International Uk Ltd,A001656,12/04/2022,1422666,350.00,Personality Profiles
North West Leicestershire District Council,31UH,Street Management,Environment Transport,ENOT,Pakawaste Ltd,A032627,12/04/2022,1422686,504.00,Operational Equipment
North West Leicestershire District Council,31UH,Information Technology,ICT Services,ICT,ACS Systems (UK) Ltd T/a ACS Office Solutions,A043447,12/04/2022,1422687,1824.00,Training Expenses
North West Leicestershire District Council,31UH,Street Management,Environment Parks,ENOP,Seton Limited,A001465,12/04/2022,1422690,423.92,Operational Purchases
North West Leicestershire District Council,31UH,Information Technology,ICT Services,ICT,dotdigital,A037038,12/04/2022,1422691,308.00,Administrative Equipment
North West Leicestershire District Council,31UH,Street Management,Environment Transport,ENOT,Enterprise Flex-E-Rent,A046516,12/04/2022,1422694,1091.71,Hire Of Transport
North West Leicestershire District Council,31UH,Street Management,Environment Transport,ENOT,Reflec Signs & Graphics Ltd,A025348,12/04/2022,1422702,340.00,Repairs - Parts
North West Leicestershire District Council,31UH,Leisure & Culture,Sport & Physical Activity,SPA,Algeco UK Limited,A005413,12/04/2022,1422714,522.58,Portable Accomodation and Secure Storage
North West Leicestershire District Council,31UH,Leisure & Culture,Sport & Physical Activity,SPA,Everyone Active,A045678,12/04/2022,1422715,265.10,Sports Court Hire
North West Leicestershire District Council,31UH,Street Management,Environment Parks,ENOP,Rigby Taylor Limited,A001392,12/04/2022,1422716,595.00,Operational Purchases
North West Leicestershire District Council,31UH,Street Management,Environment Transport,ENOT,Reflec Signs & Graphics Ltd,A025348,12/04/2022,1422735,860.00,Operational Equipment
North West Leicestershire District Council,31UH,Property Services,Property Facilities Management,PROPFM,John Merison BMC Ltd,A001092,12/04/2022,1422768,979.38,Building Security
North West Leicestershire District Council,31UH,Information Technology,ICT Services,ICT,Freedom Communications (UK) Ltd,A032826,12/04/2022,1422777,605.71,Telephones
North West Leicestershire District Council,31UH,Information Technology,ICT Services,ICT,Cable & Wireless Worldwide,A038473,12/04/2022,1422778,1857.36,Admin Equipment - Maintenance
North West Leicestershire District Council,31UH,Neighbourhoods & Communities,N & C Neighbourhoods,NACN,David Tucker Associates,A044236,12/04/2022,1422813,290.00,Contract Payments (Other) Ext
North West Leicestershire District Council,31UH,Property Services,Property Facilities Management,PROPFM,Century Fire & Security Limited,A020453,12/04/2022,1422814,998.00,Building Security
North West Leicestershire District Council,31UH,Information Technology,ICT Services,ICT,Idox Software Ltd,A034157,12/04/2022,1422815,1900.00,Contract Payments (Other) Ext
North West Leicestershire District Council,31UH,Property Services,Property Facilities Management,PROPFM,Second Element Ltd,A046693,12/04/2022,1422831,815.00,Service Contracts - Premises costs
North West Leicestershire District Council,31UH,Leisure & Culture,Sport & Physical Activity,SPA,Castle Donington College,A000302,27/04/2022,1423163,5922.00,Agency Staff
North West Leicestershire District Council,31UH,Street Management,Environment Transport,ENOT,Environment Agency,A044904,27/04/2022,1423267,4169.00,Licences
North West Leicestershire District Council,31UH,Street Management,Environment Transport,ENOT,Environment Agency,A044904,27/04/2022,1423268,2240.00,Licences
North West Leicestershire District Council,31UH,Street Management,Environment Transport,ENOT,J F Lloyd & Sons,A000991,27/04/2022,1423269,260.00,Hire Of Operational Equipment
North West Leicestershire District Council,31UH,Street Management,Environment Transport,ENOT,J F Lloyd & Sons,A000991,27/04/2022,1423270,260.00,Hire Of Operational Equipment
North West Leicestershire District Council,31UH,Street Management,Environment Transport,ENOT,J F Lloyd & Sons,A000991,27/04/2022,1423271,390.00,Hire Of Operational Equipment
North West Leicestershire District Council,31UH,Street Management,Environment Transport,ENOT,Second 2 None,A031408,27/04/2022,1423272,440.00,Washing Down of Vehicles
North West Leicestershire District Council,31UH,Street Management,Environment Transport,ENOT,Second 2 None,A031408,27/04/2022,1423273,8010.00,Washing Down of Vehicles
North West Leicestershire District Council,31UH,Housing,HRA Housing Management,HRAHM,James Andrews Recruitment Solutions,A036290,27/04/2022,1423279,893.40,Agency Staff
